[Event "MPL-1 Indian Chess Tour 2022"]
[Site "Online"]
[Date "2022.03.31"]
[Round "1.8"]
[White "Gukesh D"]
[Black "raunaksadhwani"]
[Result "1-0"]
[ECO "E39"]
[WhiteElo "2614"]
[BlackElo "2005"]
[Annotator "RC"]
[PlyCount "85"]
[EventDate "2022.03.30"]
[EventType "tourn"]
[EventCountry "NET"]
[SourceTitle "playchess.com"]
[Source "ChessBase"]
[SourceQuality "1"]
[TimeControl "5400+30"]

1. d4 {[%emt 1:15:40]} Nf6 {[%emt 1:15:40]} 2. c4 {[%emt 0:00:24]} e6 {[%emt 0:00:22]} 3. Nf3 {[%emt 0:00:23]} d5 {[%emt 0:00:21]} 4. Nc3 {[%emt 0:00:23]} Bb4 {[%emt 0:00:21]} 5. Qb3 {[%emt 0:00:41]} c5 {[%emt 0:00:29]} 6. dxc5 {[%emt 0:00:22]} Na6 {[%emt 0:00:28]} 7. a3 {[%emt 0:02:15]} Bxc3+ {[%emt 0:00:23]} 8. Qxc3 {[%emt 0:00:21]} Nxc5 {[%emt 0:00:20]} 9. b4 {[%emt 0:01:59]} Nce4 {[%emt 0:00:55]} 10. Qd4 {[%emt 0:00:22]} O-O {[%emt 0:02:48]} 11. cxd5 {[%emt 0:00:55]} Qxd5 {[%emt 0:01:52]} 12. Qxd5 {[%emt 0:00:32]} exd5 {[%emt 0:00:58]} 13. Nd4 {[%emt 0:00:48]} Bd7 {[%emt 0:01:13]} 14. f3 {[%emt 0:02:26]} Nd6 {[%emt 0:00:31]} 15. e3 {[%emt 0:01:17]} Nf5 {[%emt 0:02:03]} 16. Nxf5 {[%emt 0:04:02]} Bxf5 {[%emt 0:00:20]} 17. g4 {[%emt 0:00:21]} Bg6 {[%emt 0:00:37]} 18. Bb2 {[%emt 0:00:29]} Rac8 {[%emt 0:01:03]} 19. Rg1 {[%emt 0:00:22]} Nd7 {[%emt 0:05:27]} 20. h4 {[%emt 0:01:25]} f6 {[%emt 0:00:57]} 21. h5 {[%emt 0:01:09]} Bf7 {[%emt 0:00:22]} 22. Bd4 {[%emt 0:00:56]} Ne5 {[%emt 0:01:50]} 23. Be2 {[%emt 0:00:21]} Nc6 {[%emt 0:00:21]} 24. Bb2 {[%emt 0:01:36]} d4 {[%emt 0:00:25]} 25. b5 {[%emt 0:00:23]} Na5 {[%emt 0:00:29]} 26. Bxd4 {[%emt 0:00:38]} Nb3 {[%emt 0:00:51]} 27. Rd1 {[%emt 0:00:22]} Nxd4 {[%emt 0:00:27]} 28. Rxd4 {[%emt 0:00:21]} Rc3 {[%emt 0:00:38]} 29. Kf2 {[%emt 0:01:54]} Rxa3 {[%emt 0:00:25]} 30. Rc1 {[%emt 0:00:21]} f5 {[%emt 0:01:46]} 31. gxf5 {[%emt 0:01:13]} Bxh5 {[%emt 0:00:21]} 32. Rc7 {[%emt 0:00:21]} Ra2 {[%emt 0:00:31]} 33. e4 {[%emt 0:00:28]} g5 {[%emt 0:01:09]} 34. Ke3 {[%emt 0:01:04]} Ra3+ {[%emt 0:00:21]} 35. Bd3 {[%emt 0:00:27]} Rf7 {[%emt 0:00:41]} 36. Rxf7 {[%emt 0:00:31]} Kxf7 {[%emt 0:00:20]} 37. e5 {[%emt 0:00:22]} Ke7 {[%emt 0:00:20]} 38. Ke4 {[%emt 0:00:32]} Bf7 {[%emt 0:00:33]} 39. Bc4 {[%emt 0:00:54]} Bh5 {[%emt 0:00:33]} 40. f6+ {[%emt 0:00:34]} Ke8 {[%emt 0:00:21]} 41. e6 {[%emt 0:00:23]} Rxf3 {[%emt 0:00:21]} 42. f7+ {[%emt 0:00:24]} Kf8 {[%emt 0:00:47]} 43. Rd8+ {[%emt 0:00:21]} 1-0

[Event "MPL-1 Indian Chess Tour 2022"]
[Site "Online"]
[Date "2022.03.31"]
[Round "2.1"]
[White "Sethuraman, S.P."]
[Black "Sadhwani, Raunak"]
[Result "0-1"]
[ECO "E33"]
[WhiteElo "2619"]
[BlackElo "2616"]
[Annotator "ChessBase"]
[PlyCount "110"]
[EventDate "2022.03.30"]
[EventType "tourn"]
[EventCountry "NET"]
[SourceTitle "playchess.com"]
[Source "ChessBase"]
[SourceQuality "1"]
[TimeControl "5400+30"]

1. d4 {[%emt 1:15:40]} Nf6 {[%emt 1:15:40]} 2. c4 {[%emt 0:00:23]} e6 {[%emt 0:00:23]} 3. Nc3 {[%emt 0:00:21]} Bb4 {[%emt 0:00:21]} 4. Qc2 {[%emt 0:00:21]} Nc6 {[%emt 0:00:53]} 5. e3 {[%emt 0:00:27]} a5 {[%emt 0:00:33]} 6. Bd3 {[%emt 0:00:26]} d6 {[%emt 0:00:32]} 7. Nge2 {[%emt 0:00:22]} e5 {[%emt 0:00:49]} 8. O-O {[%emt 0:00:45]} Bxc3 {[%emt 0:00:49]} 9. bxc3 {[%emt 0:00:21]} O-O {[%emt 0:00:43]} 10. e4 {[%emt 0:00:29]} Re8 {[%emt 0:01:08]} 11. f4 {[%emt 0:00:35]} exd4 {[%emt 0:00:29]} 12. Nxd4 {[%emt 0:01:16]} Bd7 {[%emt 0:00:31]} 13. Bd2 {[%emt 0:00:35]} h6 {[%emt 0:01:22]} 14. Rae1 {[%emt 0:00:25]} Re7 {[%emt 0:00:30]} 15. c5 {[%emt 0:02:14]} dxc5 {[%emt 0:01:16]} 16. Nxc6 {[%emt 0:00:36]} Bxc6 {[%emt 0:00:20]} 17. e5 {[%emt 0:00:21]} Rd7 {[%emt 0:00:25]} 18. exf6 {[%emt 0:01:38]} Rxd3 {[%emt 0:00:23]} 19. Be3 {[%emt 0:01:58]} Qd7 {[%emt 0:04:31]} 20. f5 {[%emt 0:00:54]} Re8 {[%emt 0:02:34]} 21. Qf2 {[%emt 0:00:25]} Qd5 {[%emt 0:02:35]} 22. c4 {[%emt 0:03:08]} Qxg2+ {[%emt 0:00:39]} 23. Qxg2 {[%emt 0:00:21]} Bxg2 {[%emt 0:00:20]} 24. Bxh6 {[%emt 0:03:31]} Rxe1 {[%emt 0:00:22]} 25. Rxe1 {[%emt 0:00:23]} gxh6 {[%emt 0:00:24]} 26. Kxg2 {[%emt 0:00:24]} Rd6 {[%emt 0:00:22]} 27. Re7 {[%emt 0:00:46]} Rxf6 {[%emt 0:00:35]} 28. Rxc7 {[%emt 0:00:22]} b6 {[%emt 0:01:14]} 29. Rb7 {[%emt 0:00:21]} Kg7 {[%emt 0:00:26]} 30. Kg3 {[%emt 0:00:34]} Rd6 {[%emt 0:00:21]} 31. Kf4 {[%emt 0:01:51]} Kf6 {[%emt 0:02:41]} 32. Kf3 {[%emt 0:01:29]} h5 {[%emt 0:00:58]} 33. Kg3 {[%emt 0:01:33]} Kxf5 {[%emt 0:00:51]} 34. Rxf7+ {[%emt 0:00:24]} Ke4 {[%emt 0:00:26]} 35. Kh4 {[%emt 0:00:31]} Rd2 {[%emt 0:00:38]} 36. Re7+ {[%emt 0:00:30]} Kf5 {[%emt 0:00:22]} 37. h3 {[%emt 0:00:35]} Rxa2 {[%emt 0:00:22]} 38. Kxh5 {[%emt 0:00:31]} Ra4 {[%emt 0:00:21]} 39. Rb7 {[%emt 0:00:30]} Rb4 {[%emt 0:00:21]} 40. h4 {[%emt 0:00:27]} a4 {[%emt 0:00:21]} 41. Rb8 {[%emt 0:00:22]} a3 {[%emt 0:01:05]} 42. Ra8 {[%emt 0:00:22]} Rxc4 {[%emt 0:00:29]} 43. Rxa3 {[%emt 0:00:22]} b5 {[%emt 0:00:21]} 44. Rf3+ {[%emt 0:00:44]} Rf4 {[%emt 0:01:06]} 45. Rd3 {[%emt 0:00:47]} Ke5 {[%emt 0:00:26]} 46. Kg5 {[%emt 0:00:23]} Rf8 {[%emt 0:00:26]} 47. Kg6 {[%emt 0:00:48]} c4 {[%emt 0:00:28]} 48. Rd7 {[%emt 0:00:39]} b4 {[%emt 0:00:33]} 49. h5 {[%emt 0:00:35]} c3 {[%emt 0:00:32]} 50. h6 {[%emt 0:00:29]} c2 {[%emt 0:00:39]} 51. Rc7 {[%emt 0:00:24]} b3 {[%emt 0:00:24]} 52. Kg7 {[%emt 0:00:22]} Rb8 {[%emt 0:00:36]} 53. h7 {[%emt 0:00:22]} b2 {[%emt 0:00:27]} 54. Rxc2 {[%emt 0:00:24]} b1=Q {[%emt 0:00:22]} 55. Re2+ {[%emt 0:00:24]} Kf4 {[%emt 0:00:28]} 0-1

[Event "MPL-1 Indian Chess Tour 2022"]
[Site "Online"]
[Date "2022.03.27"]
[Round "3.5"]
[White "Karthikeyan, Murali"]
[Black "Puranik, Abhimanyu"]
[Result "1-0"]
[ECO "D71"]
[WhiteElo "2622"]
[BlackElo "2618"]
[Annotator "ChessBase"]
[PlyCount "93"]
[EventDate "2022.03.30"]
[EventType "tourn"]
[EventCountry "NET"]
[SourceTitle "playchess.com"]
[Source "ChessBase"]
[SourceQuality "1"]
[TimeControl "5400+30"]

1. Nf3 {[%emt 1:15:40]} Nf6 {[%emt 1:15:40]} 2. c4 {[%emt 0:00:25]} c5 {[%emt 0:00:32]} 3. Nc3 {[%emt 0:00:24]} d5 {[%emt 0:00:21]} 4. cxd5 {[%emt 0:00:21]} Nxd5 {[%emt 0:00:22]} 5. d4 {[%emt 0:00:21]} Nxc3 {[%emt 0:00:27]} 6. bxc3 {[%emt 0:00:21]} g6 {[%emt 0:00:20]} 7. g3 {[%emt 0:00:39]} Bg7 {[%emt 0:00:22]} 8. Bg2 {[%emt 0:00:21]} Nc6 {[%emt 0:00:43]} 9. d5 {[%emt 0:00:44]} Nb4 {[%emt 0:01:31]} 10. cxb4 {[%emt 0:02:21]} Bxa1 {[%emt 0:00:24]} 11. bxc5 {[%emt 0:01:12]} Qa5+ {[%emt 0:00:39]} 12. Bd2 {[%emt 0:00:26]} Bc3 {[%emt 0:00:23]} 13. Qc2 {[%emt 0:00:34]} Bxd2+ {[%emt 0:00:44]} 14. Nxd2 {[%emt 0:00:20]} O-O {[%emt 0:00:56]} 15. O-O {[%emt 0:00:28]} Bd7 {[%emt 0:01:20]} 16. d6 {[%emt 0:02:32]} exd6 {[%emt 0:00:54]} 17. Ne4 {[%emt 0:00:35]} Bf5 {[%emt 0:02:06]} 18. Nf6+ {[%emt 0:00:26]} Kh8 {[%emt 0:00:54]} 19. e4 {[%emt 0:03:33]} Be6 {[%emt 0:01:38]} 20. Qc1 {[%emt 0:01:26]} Qd8 {[%emt 0:01:01]} 21. Qa1 {[%emt 0:01:31]} dxc5 {[%emt 0:00:49]} 22. Rd1 {[%emt 0:00:21]} Qa5 {[%emt 0:00:45]} 23. Qe5 {[%emt 0:01:36]} Rad8 {[%emt 0:04:35]} 24. Nd5+ {[%emt 0:01:20]} f6 {[%emt 0:00:22]} 25. Qxe6 {[%emt 0:00:21]} Qxa2 {[%emt 0:00:21]} 26. h4 {[%emt 0:01:00]} Qb2 {[%emt 0:00:49]} 27. Qe7 {[%emt 0:00:56]} c4 {[%emt 0:01:09]} 28. Ne3 {[%emt 0:01:52]} Rde8 {[%emt 0:00:23]} 29. Qc5 {[%emt 0:00:56]} Rc8 {[%emt 0:00:39]} 30. Qxa7 {[%emt 0:00:37]} c3 {[%emt 0:00:59]} 31. Qd4 {[%emt 0:01:42]} Qa3 {[%emt 0:01:58]} 32. Nc2 {[%emt 0:00:50]} Qe7 {[%emt 0:00:50]} 33. Qb6 {[%emt 0:00:33]} Rfd8 {[%emt 0:00:52]} 34. Rd5 {[%emt 0:00:22]} Kg7 {[%emt 0:01:01]} 35. Bf3 {[%emt 0:00:21]} Rxd5 {[%emt 0:00:23]} 36. exd5 {[%emt 0:00:21]} Rd8 {[%emt 0:00:22]} 37. Qd4 {[%emt 0:00:39]} Qe5 {[%emt 0:00:30]} 38. Qb4 {[%emt 0:00:21]} Rd7 {[%emt 0:01:00]} 39. Nd4 {[%emt 0:00:24]} Kf7 {[%emt 0:00:23]} 40. Qxc3 {[%emt 0:00:21]} Rc7 {[%emt 0:00:25]} 41. Qb4 {[%emt 0:00:24]} Rc1+ {[%emt 0:00:31]} 42. Kg2 {[%emt 0:00:22]} Qe1 {[%emt 0:00:22]} 43. Qxb7+ {[%emt 0:00:23]} Kg8 {[%emt 0:00:24]} 44. Kh3 {[%emt 0:00:40]} Qxf2 {[%emt 0:00:26]} 45. Ne6 {[%emt 0:00:29]} Qf1+ {[%emt 0:00:46]} 46. Bg2 {[%emt 0:00:24]} Qf5+ {[%emt 0:00:26]} 47. Kh2 {[%emt 0:00:21]} 1-0

[Event "MPL-1 Indian Chess Tour 2022"]
[Site "Online"]
[Date "2022.03.31"]
[Round "4.2"]
[White "Iniyan, P."]
[Black "Sadhwani, Raunak"]
[Result "0-1"]
[ECO "E54"]
[WhiteElo "2516"]
[BlackElo "2616"]
[Annotator "ChessBase"]
[PlyCount "104"]
[EventDate "2022.03.30"]
[EventType "tourn"]
[EventCountry "NET"]
[SourceTitle "playchess.com"]
[Source "ChessBase"]
[SourceQuality "1"]
[TimeControl "5400+30"]

1. d4 {[%emt 1:15:40]} Nf6 {[%emt 1:15:40]} 2. c4 {[%emt 0:00:22]} e6 {[%emt 0:00:22]} 3. Nc3 {[%emt 0:00:20]} Bb4 {[%emt 0:00:22]} 4. e3 {[%emt 0:00:22]} O-O {[%emt 0:00:25]} 5. Bd3 {[%emt 0:00:21]} d5 {[%emt 0:00:22]} 6. Nf3 {[%emt 0:00:24]} c5 {[%emt 0:00:26]} 7. O-O {[%emt 0:00:21]} dxc4 {[%emt 0:00:25]} 8. Bxc4 {[%emt 0:00:21]} cxd4 {[%emt 0:00:28]} 9. exd4 {[%emt 0:00:20]} b6 {[%emt 0:00:34]} 10. Qe2 {[%emt 0:00:53]} Bb7 {[%emt 0:00:29]} 11. Rd1 {[%emt 0:00:21]} h6 {[%emt 0:01:39]} 12. Ne5 {[%emt 0:00:45]} Nc6 {[%emt 0:01:10]} 13. Rd3 {[%emt 0:04:37]} Ne7 {[%emt 0:00:30]} 14. Rg3 {[%emt 0:02:59]} Nf5 {[%emt 0:00:40]} 15. Nxf7 {[%emt 0:00:22]} Rxf7 {[%emt 0:02:52]} 16. Qxe6 {[%emt 0:00:23]} Qe7 {[%emt 0:00:21]} 17. Qxe7 {[%emt 0:02:10]} Bxe7 {[%emt 0:00:25]} 18. Rd3 {[%emt 0:00:23]} Rd8 {[%emt 0:00:35]} 19. Bxf7+ {[%emt 0:00:32]} Kxf7 {[%emt 0:00:20]} 20. Be3 {[%emt 0:00:44]} Nd5 {[%emt 0:00:26]} 21. Nxd5 {[%emt 0:01:11]} Bxd5 {[%emt 0:00:20]} 22. a3 {[%emt 0:00:28]} g5 {[%emt 0:00:35]} 23. h3 {[%emt 0:00:34]} Nh4 {[%emt 0:00:41]} 24. f3 {[%emt 0:00:22]} Nf5 {[%emt 0:00:28]} 25. Bf2 {[%emt 0:00:25]} Bd6 {[%emt 0:00:25]} 26. Rc1 {[%emt 0:00:28]} h5 {[%emt 0:00:28]} 27. Rdd1 {[%emt 0:00:32]} Rg8 {[%emt 0:00:33]} 28. Rf1 {[%emt 0:00:26]} h4 {[%emt 0:01:35]} 29. Rfe1 {[%emt 0:00:32]} Rd8 {[%emt 0:00:25]} 30. Rc3 {[%emt 0:00:24]} Bf4 {[%emt 0:00:24]} 31. Rc2 {[%emt 0:00:50]} a5 {[%emt 0:00:58]} 32. b4 {[%emt 0:01:25]} axb4 {[%emt 0:00:27]} 33. axb4 {[%emt 0:00:20]} Ra8 {[%emt 0:00:21]} 34. Kf1 {[%emt 0:00:55]} Bd6 {[%emt 0:01:36]} 35. Rcc1 {[%emt 0:01:35]} Ra2 {[%emt 0:02:01]} 36. Ra1 {[%emt 0:00:43]} Rxa1 {[%emt 0:00:28]} 37. Rxa1 {[%emt 0:00:20]} Bxb4 {[%emt 0:00:21]} 38. Ra7+ {[%emt 0:00:29]} Ke6 {[%emt 0:00:29]} 39. Ke2 {[%emt 0:01:08]} Bc4+ {[%emt 0:00:39]} 40. Kd1 {[%emt 0:00:21]} b5 {[%emt 0:00:50]} 41. Ra6+ {[%emt 0:00:32]} Bd6 {[%emt 0:00:26]} 42. Ra8 {[%emt 0:00:26]} Bf1 {[%emt 0:00:39]} 43. Rg8 {[%emt 0:00:23]} Bf4 {[%emt 0:00:32]} 44. Rg6+ {[%emt 0:00:34]} Kd5 {[%emt 0:01:19]} 45. Rf6 {[%emt 0:00:29]} Ng3 {[%emt 0:01:04]} 46. Bxg3 {[%emt 0:00:26]} hxg3 {[%emt 0:00:20]} 47. h4 {[%emt 0:00:25]} Bxg2 {[%emt 0:00:21]} 48. hxg5 {[%emt 0:00:21]} Bxf3+ {[%emt 0:00:23]} 49. Ke1 {[%emt 0:00:21]} g2 {[%emt 0:00:22]} 50. Kf2 {[%emt 0:00:22]} Be3+ {[%emt 0:00:28]} 51. Kxe3 {[%emt 0:00:20]} g1=Q+ {[%emt 0:00:21]} 52. Kxf3 {[%emt 0:00:24]} Qxg5 {[%emt 0:00:26]} 0-1

[Event "MPL-1 Indian Chess Tour 2022"]
[Site "Online"]
[Date "2022.03.27"]
[Round "4.3"]
[White "Lalith Babu M R"]
[Black "Gukesh D"]
[Result "1-0"]
[ECO "D38"]
[WhiteElo "2563"]
[BlackElo "2614"]
[Annotator "ChessBase"]
[PlyCount "53"]
[EventDate "2022.03.30"]
[EventType "tourn"]
[EventCountry "NET"]
[SourceTitle "playchess.com"]
[Source "ChessBase"]
[SourceQuality "1"]
[TimeControl "5400+30"]

1. d4 {[%emt 1:15:40]} Nf6 {[%emt 1:15:40]} 2. Nf3 {[%emt 0:00:22]} d5 {[%emt 0:00:31]} 3. c4 {[%emt 0:00:21]} e6 {[%emt 0:00:23]} 4. Nc3 {[%emt 0:00:20]} Bb4 {[%emt 0:00:47]} 5. Qa4+ {[%emt 0:00:22]} Nc6 {[%emt 0:00:22]} 6. e3 {[%emt 0:00:21]} O-O {[%emt 0:00:22]} 7. Bd2 {[%emt 0:00:22]} Re8 {[%emt 0:00:34]} 8. Qc2 {[%emt 0:00:34]} Bf8 {[%emt 0:00:32]} 9. a3 {[%emt 0:00:25]} h6 {[%emt 0:00:21]} 10. O-O-O {[%emt 0:00:27]} a5 {[%emt 0:00:21]} 11. g4 {[%emt 0:00:42]} Nb4 {[%emt 0:00:24]} 12. axb4 {[%emt 0:00:56]} axb4 {[%emt 0:00:23]} 13. Nb1 {[%emt 0:00:20]} Ra1 {[%emt 0:01:48]} 14. g5 {[%emt 0:00:23]} hxg5 {[%emt 0:05:23]} 15. Nxg5 {[%emt 0:00:23]} b3 {[%emt 0:00:23]} 16. Qxb3 {[%emt 0:00:33]} Bd7 {[%emt 0:00:23]} 17. Qxb7 {[%emt 0:00:45]} Ba4 {[%emt 0:00:49]} 18. Bd3 {[%emt 0:00:23]} Qd7 {[%emt 0:00:41]} 19. c5 {[%emt 0:00:49]} e5 {[%emt 0:01:15]} 20. dxe5 {[%emt 0:01:31]} Rxe5 {[%emt 0:00:22]} 21. Nf3 {[%emt 0:00:21]} Rf5 {[%emt 0:00:21]} 22. Nd4 {[%emt 0:00:41]} Rxf2 {[%emt 0:00:21]} 23. b3 {[%emt 0:00:46]} Ra2 {[%emt 0:02:08]} 24. bxa4 {[%emt 0:01:09]} Qe7 {[%emt 0:04:00]} 25. Qb3 {[%emt 0:01:15]} Qxc5+ {[%emt 0:01:01]} 26. Nc2 {[%emt 0:00:22]} Ra1 {[%emt 0:00:56]} 27. Kb2 {[%emt 0:00:25]} 1-0

[Event "MPL-1 Indian Chess Tour 2022"]
[Site "Online"]
[Date "2022.03.27"]
[Round "4.4"]
[White "Puranik, Abhimanyu"]
[Black "Aryan Chopra"]
[Result "1-0"]
[ECO "D02"]
[WhiteElo "2618"]
[BlackElo "2585"]
[Annotator "ChessBase"]
[PlyCount "85"]
[EventDate "2022.03.30"]
[EventType "tourn"]
[EventCountry "NET"]
[SourceTitle "playchess.com"]
[Source "ChessBase"]
[SourceQuality "1"]
[TimeControl "5400+30"]

1. d4 {[%emt 1:15:40]} Nf6 {[%emt 1:15:40]} 2. Nf3 {[%emt 0:00:22]} e6 {[%emt 0:00:24]} 3. g3 {[%emt 0:00:24]} c5 {[%emt 0:00:30]} 4. Bg2 {[%emt 0:00:37]} cxd4 {[%emt 0:00:22]} 5. Nxd4 {[%emt 0:00:21]} d5 {[%emt 0:00:21]} 6. O-O {[%emt 0:00:24]} e5 {[%emt 0:00:22]} 7. Nb3 {[%emt 0:00:23]} Be6 {[%emt 0:00:33]} 8. c4 {[%emt 0:00:32]} Nc6 {[%emt 0:00:23]} 9. cxd5 {[%emt 0:00:55]} Bxd5 {[%emt 0:00:23]} 10. Bg5 {[%emt 0:00:25]} Bxg2 {[%emt 0:00:42]} 11. Kxg2 {[%emt 0:00:26]} Qxd1 {[%emt 0:02:44]} 12. Rxd1 {[%emt 0:00:22]} Ne4 {[%emt 0:00:20]} 13. Be3 {[%emt 0:00:43]} Rd8 {[%emt 0:01:18]} 14. Rc1 {[%emt 0:01:20]} Be7 {[%emt 0:01:40]} 15. Nc3 {[%emt 0:00:27]} Nxc3 {[%emt 0:00:25]} 16. Rxc3 {[%emt 0:00:23]} O-O {[%emt 0:04:52]} 17. Rac1 {[%emt 0:00:23]} f5 {[%emt 0:00:32]} 18. a3 {[%emt 0:02:22]} Kf7 {[%emt 0:00:32]} 19. Bc5 {[%emt 0:01:10]} Rfe8 {[%emt 0:00:33]} 20. e4 {[%emt 0:02:44]} fxe4 {[%emt 0:01:36]} 21. Bxe7 {[%emt 0:00:28]} Rxe7 {[%emt 0:00:20]} 22. Nc5 {[%emt 0:00:22]} Rd2 {[%emt 0:01:01]} 23. b4 {[%emt 0:00:27]} Nd4 {[%emt 0:02:04]} 24. Nxe4 {[%emt 0:01:01]} Ra2 {[%emt 0:00:23]} 25. Rc7 {[%emt 0:01:11]} Ne6 {[%emt 0:00:23]} 26. Nd6+ {[%emt 0:01:37]} Kf6 {[%emt 0:00:21]} 27. Rxb7 {[%emt 0:02:38]} Rxb7 {[%emt 0:00:27]} 28. Nxb7 {[%emt 0:00:21]} Rxa3 {[%emt 0:00:21]} 29. Rc6 {[%emt 0:00:21]} Ke7 {[%emt 0:00:59]} 30. Na5 {[%emt 0:00:23]} Ra4 {[%emt 0:00:33]} 31. Ra6 {[%emt 0:01:28]} Kf6 {[%emt 0:00:22]} 32. b5 {[%emt 0:00:53]} Rb4 {[%emt 0:00:31]} 33. Rxa7 {[%emt 0:00:39]} Rxb5 {[%emt 0:00:22]} 34. Nc4 {[%emt 0:00:21]} h5 {[%emt 0:01:06]} 35. h4 {[%emt 0:00:53]} Rb4 {[%emt 0:01:18]} 36. Nd6 {[%emt 0:00:44]} Rb8 {[%emt 0:00:22]} 37. Ne4+ {[%emt 0:00:48]} Kf5 {[%emt 0:00:22]} 38. f3 {[%emt 0:00:21]} Rb2+ {[%emt 0:01:00]} 39. Kh3 {[%emt 0:00:22]} Rb6 {[%emt 0:00:54]} 40. Rd7 {[%emt 0:00:46]} Nd4 {[%emt 0:01:11]} 41. Ng5 {[%emt 0:00:32]} Kf6 {[%emt 0:00:23]} 42. f4 {[%emt 0:01:24]} Ne6 {[%emt 0:01:02]} 43. Rf7+ {[%emt 0:00:24]} 1-0

[Event "MPL-1 Indian Chess Tour 2022"]
[Site "Online"]
[Date "2022.03.27"]
[Round "4.5"]
[White "Sankalp Gupta"]
[Black "Karthikeyan, Murali"]
[Result "1/2-1/2"]
[ECO "D38"]
[WhiteElo "2536"]
[BlackElo "2622"]
[Annotator "ChessBase"]
[PlyCount "107"]
[EventDate "2022.03.30"]
[EventType "tourn"]
[EventCountry "NET"]
[SourceTitle "playchess.com"]
[Source "ChessBase"]
[SourceQuality "1"]
[TimeControl "5400+30"]

1. d4 {[%emt 1:15:40]} Nf6 {[%emt 1:15:40]} 2. c4 {[%emt 0:00:23]} e6 {[%emt 0:00:28]} 3. Nf3 {[%emt 0:00:21]} d5 {[%emt 0:00:21]} 4. Nc3 {[%emt 0:00:22]} Ne4 {[%emt 0:00:22]} 5. e3 {[%emt 0:00:22]} Bb4 {[%emt 0:00:33]} 6. Qc2 {[%emt 0:00:21]} c6 {[%emt 0:01:07]} 7. a3 {[%emt 0:00:24]} Bxc3+ {[%emt 0:00:41]} 8. bxc3 {[%emt 0:00:21]} b6 {[%emt 0:00:44]} 9. Bd3 {[%emt 0:00:28]} Ba6 {[%emt 0:00:21]} 10. O-O {[%emt 0:00:44]} Nd6 {[%emt 0:00:37]} 11. cxd5 {[%emt 0:03:17]} Bxd3 {[%emt 0:00:22]} 12. Qxd3 {[%emt 0:00:20]} cxd5 {[%emt 0:00:23]} 13. Nd2 {[%emt 0:01:16]} Nc6 {[%emt 0:01:37]} 14. c4 {[%emt 0:00:50]} dxc4 {[%emt 0:02:12]} 15. Nxc4 {[%emt 0:00:20]} Nxc4 {[%emt 0:00:31]} 16. Qxc4 {[%emt 0:00:20]} Na5 {[%emt 0:00:24]} 17. Qb4 {[%emt 0:00:44]} Qe7 {[%emt 0:00:29]} 18. Bd2 {[%emt 0:01:38]} Qxb4 {[%emt 0:00:51]} 19. Bxb4 {[%emt 0:00:20]} Nc4 {[%emt 0:01:25]} 20. Rfc1 {[%emt 0:01:16]} Rc8 {[%emt 0:00:22]} 21. f3 {[%emt 0:00:25]} Kd7 {[%emt 0:00:27]} 22. Kf2 {[%emt 0:00:26]} a5 {[%emt 0:00:49]} 23. Be1 {[%emt 0:00:26]} Nd6 {[%emt 0:00:48]} 24. Ke2 {[%emt 0:01:06]} Rc4 {[%emt 0:00:28]} 25. Kd3 {[%emt 0:00:46]} Rhc8 {[%emt 0:00:26]} 26. Rcb1 {[%emt 0:00:36]} R8c6 {[%emt 0:00:46]} 27. a4 {[%emt 0:00:35]} Kc7 {[%emt 0:01:14]} 28. e4 {[%emt 0:00:55]} f5 {[%emt 0:00:31]} 29. Rb3 {[%emt 0:03:39]} fxe4+ {[%emt 0:02:57]} 30. fxe4 {[%emt 0:00:20]} e5 {[%emt 0:00:27]} 31. Bc3 {[%emt 0:01:01]} Nxe4 {[%emt 0:01:06]} 32. Kxe4 {[%emt 0:00:20]} Rxc3 {[%emt 0:00:21]} 33. Rxc3 {[%emt 0:00:21]} Rxc3 {[%emt 0:00:20]} 34. Kxe5 {[%emt 0:00:23]} Rc2 {[%emt 0:01:47]} 35. g4 {[%emt 0:02:27]} Rxh2 {[%emt 0:00:28]} 36. Rf1 {[%emt 0:00:36]} Re2+ {[%emt 0:00:30]} 37. Kd5 {[%emt 0:00:21]} Re7 {[%emt 0:01:53]} 38. Rc1+ {[%emt 0:00:57]} Kb7 {[%emt 0:00:23]} 39. g5 {[%emt 0:00:54]} Rc7 {[%emt 0:01:23]} 40. Rh1 {[%emt 0:00:53]} Rd7+ {[%emt 0:01:26]} 41. Ke5 {[%emt 0:00:30]} h6 {[%emt 0:01:12]} 42. gxh6 {[%emt 0:01:06]} gxh6 {[%emt 0:00:20]} 43. Rxh6 {[%emt 0:00:20]} Re7+ {[%emt 0:00:29]} 44. Re6 {[%emt 0:02:06]} Rxe6+ {[%emt 0:01:27]} 45. Kxe6 {[%emt 0:00:20]} b5 {[%emt 0:00:21]} 46. axb5 {[%emt 0:00:32]} a4 {[%emt 0:00:20]} 47. d5 {[%emt 0:00:21]} a3 {[%emt 0:00:21]} 48. d6 {[%emt 0:00:20]} a2 {[%emt 0:00:23]} 49. d7 {[%emt 0:00:21]} a1=Q {[%emt 0:00:22]} 50. d8=Q {[%emt 0:00:21]} Qe1+ {[%emt 0:00:35]} 51. Kf7 {[%emt 0:00:25]} Qf1+ {[%emt 0:00:24]} 52. Ke8 {[%emt 0:00:24]} Qxb5+ {[%emt 0:00:34]} 53. Qd7+ {[%emt 0:00:22]} Qxd7+ {[%emt 0:00:22]} 54. Kxd7 {[%emt 0:00:20]} 1/2-1/2